bitfinex/quotes_SOLUSD_20230116
["timestamp","ask_amount","ask_price","bid_price","bid_amount"]
[1673864806342,17.0,23.489,23.471,20.0]
[1673864806552,31.95,23.497,23.471,41.46196354]
[1673864806763,31.95,23.498,23.472,73.44196354]
[1673864807184,20.0,23.501,23.474,20.0]
[1673864807394,31.95,23.5,23.475,20.0]
[1673864807827,20.0,23.498,23.475,20.0]
[1673864808147,31.95,23.497,23.475,41.46196354]
[1673864808333,31.95,23.498,23.48,22.9]
[1673864808553,31.95,23.5,23.48,22.9]
[1673864808764,31.94,23.502,23.48,22.9]
[1673864809817,110.5486,23.504,23.481,94.89392708]
[1673864810028,110.5486,23.504,23.481,73.43196354]
[1673864810245,110.5486,23.504,23.482,21.46196354]
[1673864810555,110.5486,23.504,23.483,40.0]
[1673864810748,31.93,23.513,23.483,40.0]
[1673864810960,31.93,23.513,23.49,23.06]
[1673864811172,20.0,23.512,23.49,23.06]
[1673864811378,31.92,23.515,23.5,23.05]
[1673864811604,31.91,23.528,23.5,23.05]
[1673864812011,20.0,23.527,23.501,20.0]
[1673864812219,31.91,23.526,23.501,20.0]
[1673864812432,31.91,23.528,23.501,133.196]
[1673864812641,31.91,23.528,23.501,154.65796354]
[1673864813483,31.91,23.528,23.502,17.0]
[1673864813692,31.91,23.529,23.503,51.94]
[1673864813904,31.91,23.529,23.505,20.0]
[1673864814120,31.91,23.529,23.51,23.03]
[1673864814755,20.0,23.528,23.501,113.196]
[1673864814965,20.0,23.526,23.501,113.196]
[1673864815176,51.91,23.525,23.501,113.196]
[1673864815379,51.91,23.525,23.501,134.65796354]
[1673864815589,283.83622898,23.556,23.501,134.65796354]
[1673864815590,115.6653,23.556,23.51,23.02]
[1673864815791,115.6653,23.556,23.502,32.46612229]
[1673864815792,115.6653,23.556,23.53,22.98]
[1673864816215,31.87,23.555,23.53,22.98]
[1673864816426,20.0,23.554,23.53,22.98]
[1673864816751,31.87,23.553,23.53,22.98]
[1673864817294,20.0,23.552,23.53,22.98]
[1673864817482,31.88,23.551,23.53,22.98]
[1673864817687,20.0,23.55,23.53,22.98]
[1673864818121,31.88,23.549,23.531,20.0]
[1673864818440,31.88,23.549,23.53,22.98]
[1673864820313,17.0,23.548,23.53,22.98]
[1673864820527,31.88,23.547,23.53,22.98]
[1673864820862,20.0,23.548,23.53,22.98]
[1673864821064,20.0,23.546,23.53,22.98]
[1673864821282,31.88,23.545,23.53,22.98]
[1673864821483,20.0,23.544,23.53,22.98]
[1673864821905,17.0,23.543,23.53,22.98]
[1673864823266,51.89,23.542,23.51,22.98]
[1673864823482,37.0,23.541,23.51,22.98]
[1673864823691,51.89,23.54,23.51,22.98]
[1673864824013,20.0,23.538,23.511,41.46196354]
[1673864824339,48.89,23.537,23.512,21.46196354]
[1673864824654,20.0,23.536,23.512,21.46196354]
[1673864824957,20.0,23.534,23.512,21.46196354]
[1673864825152,20.0,23.532,23.512,21.46196354]
[1673864825359,48.9,23.531,23.51,22.98]
[1673864825580,20.0,23.53,23.51,22.98]
[1673864825786,48.91,23.529,23.511,21.46196354]
[1673864826000,20.0,23.53,23.512,20.0]
[1673864826435,20.0,23.53,23.514,20.0]
[1673864826833,20.0,23.534,23.515,21.46196354]
[1673864827058,48.9,23.533,23.515,21.46196354]
[1673864827262,20.0,23.532,23.515,21.46196354]
[1673864827474,17.0,23.531,23.515,21.46196354]
[1673864827687,20.0,23.53,23.511,20.0]
[1673864827889,17.0,23.529,23.512,21.46196354]
[1673864828116,31.88,23.549,23.52,114.54]
[1673864828317,31.87,23.554,23.53,22.98]
[1673864828748,20.0,23.553,23.53,22.98]
[1673864828962,31.87,23.552,23.53,22.98]
[1673864829177,20.0,23.551,23.53,22.98]
[1673864829492,31.88,23.55,23.53,22.98]
[1673864829679,20.0,23.549,23.53,22.98]
[1673864829890,20.0,23.55,23.53,22.98]
[1673864830095,51.88,23.549,23.53,22.98]
[1673864830314,20.0,23.551,23.53,22.98]
[1673864830315,31.88,23.55,23.53,22.98]
[1673864830525,20.0,23.549,23.54,22.81]
[1673864830745,20.0,23.551,23.532,51.9]
[1673864830935,31.87,23.553,23.54,44.44196354]
[1673864831154,31.86,23.561,23.541,20.0]
[1673864831488,31.85,23.567,23.531,43.08925128]
[1673864831702,4.6239,23.566,23.53,22.95]
[1673864831885,22.98,23.56,23.521,118.986]
[1673864832092,20.0,23.558,23.521,118.986]
[1673864832305,36.4939,23.557,23.52,22.87]
[1673864832542,24.6239,23.556,23.52,22.87]
[1673864832744,53.4939,23.555,23.52,22.87]
[1673864832934,20.0,23.553,23.52,22.87]
[1673864833149,73.4939,23.552,23.52,22.87]
[1673864833375,22.94,23.55,23.52,22.87]
[1673864833583,68.88,23.549,23.52,22.87]
[1673864833821,20.0,23.548,23.52,22.87]
[1673864834113,20.0,23.546,23.52,22.87]
[1673864834324,51.88,23.545,23.52,22.87]
[1673864834528,68.88,23.545,23.52,22.87]
[1673864834719,41.46196354,23.544,23.52,22.87]
[1673864834933,20.0,23.542,23.52,22.87]
[1673864835157,68.89,23.541,23.52,22.87]
[1673864835374,20.0,23.54,23.52,22.87]
[1673864835586,68.89,23.539,23.52,22.87]
[1673864835789,20.0,23.538,23.52,22.87]
[1673864835988,48.89,23.537,23.52,22.87]
[1673864836199,31.89,23.538,23.52,22.87]
[1673864836411,17.0,23.537,23.52,22.87]
[1673864836948,31.89,23.538,23.52,22.87]
[1673864837147,20.0,23.539,23.52,22.87]
[1673864837359,20.0,23.541,23.52,22.87]
[1673864837787,20.0,23.541,23.521,31.92]
[1673864837983,20.0,23.549,23.522,20.0]
[1673864838195,31.88,23.548,23.53,22.98]
[1673864838401,31.88,23.548,23.531,20.0]
[1673864838622,31.88,23.548,23.53,22.98]
[1673864839791,17.0,23.547,23.53,22.98]
[1673864839986,31.88,23.546,23.53,22.98]
[1673864840200,17.0,23.545,23.53,22.98]
[1673864840405,31.88,23.546,23.53,22.98]
[1673864840612,31.88,23.548,23.53,22.98]
[1673864840824,20.0,23.547,23.524,115.1405]
[1673864841053,20.0,23.545,23.524,115.1405]
[1673864841256,51.89,23.544,23.524,115.1405]
[1673864841467,20.0,23.543,23.524,115.1405]
[1673864841665,48.89,23.542,23.524,115.1405]
[1673864841874,20.0,23.541,23.524,115.1405]
[1673864842209,68.89,23.54,23.524,115.1405]
[1673864842522,20.0,23.539,23.524,115.1405]
[1673864842736,48.89,23.538,23.524,115.1405]
[1673864842943,20.0,23.537,23.52,22.87]
[1673864843150,17.0,23.536,23.52,22.87]
[1673864843370,31.9,23.535,23.515,110.4898]
[1673864843562,20.0,23.533,23.515,110.4898]
[1673864843893,68.9,23.532,23.515,110.4898]
[1673864844512,37.0,23.532,23.515,110.4898]
[1673864845357,31.9,23.531,23.515,110.4898]
[1673864845548,37.0,23.53,23.515,110.4898]
[1673864845978,20.0,23.53,23.515,110.4898]
[1673864846200,20.0,23.533,23.511,20.0]
[1673864846521,20.0,23.536,23.52,22.98]
[1673864847653,20.0,23.538,23.52,22.98]
[1673864847865,31.89,23.537,23.52,22.98]
[1673864848075,20.0,23.536,23.52,22.98]
[1673864848413,31.89,23.537,23.52,22.98]
[1673864848616,31.89,23.541,23.52,22.98]
[1673864848828,20.0,23.539,23.52,22.98]
[1673864849025,31.89,23.539,23.52,22.98]
[1673864849346,51.89,23.54,23.52,22.98]
[1673864849756,20.0,23.54,23.52,22.98]
[1673864849967,20.0,23.54,23.521,20.0]
[1673864850394,31.89,23.54,23.521,20.0]
[1673864850610,20.0,23.538,23.52,22.98]
[1673864851348,17.0,23.537,23.52,22.98]
[1673864851973,20.0,23.541,23.52,22.98]
[1673864852190,20.0,23.541,23.521,20.0]
[1673864853467,17.0,23.54,23.52,22.98]
[1673864853656,20.0,23.538,23.52,22.98]
[1673864853874,17.0,23.537,23.52,22.98]
[1673864854289,17.0,23.538,23.52,22.98]
[1673864855563,20.0,23.537,23.52,22.98]
[1673864855763,17.0,23.536,23.52,22.98]
[1673864855976,48.89,23.538,23.52,22.98]
[1673864861217,20.0,23.537,23.52,22.98]
[1673864861428,48.9,23.536,23.51,42.98]
[1673864861644,20.0,23.535,23.51,42.98]
[1673864861853,20.0,23.533,23.51,42.98]
[1673864862069,68.9,23.532,23.51,42.98]
[1673864862600,20.0,23.531,23.51,22.98]
[1673864862806,37.0,23.53,23.51,22.98]
[1673864863001,31.91,23.529,23.51,22.98]
[1673864863209,17.0,23.528,23.51,22.98]
[1673864863420,31.91,23.527,23.51,22.98]
[1673864863630,17.0,23.526,23.51,22.98]
[1673864864368,20.0,23.527,23.51,22.98]
[1673864864579,48.91,23.526,23.51,22.98]
[1673864864909,17.0,23.525,23.51,22.98]
[1673864865544,17.0,23.526,23.51,22.98]
[1673864865737,31.91,23.525,23.51,22.98]
[1673864866063,131.4067,23.53,23.51,24.66]
[1673864866064,17.0,23.524,23.51,24.66]
[1673864866271,17.0,23.526,23.51,24.66]
[1673864866589,31.91,23.525,23.51,24.66]
[1673864866783,17.0,23.524,23.51,24.66]
[1673864867205,17.0,23.526,23.51,24.66]
[1673864867517,17.0,23.527,23.51,24.66]
[1673864867726,31.91,23.526,23.51,24.66]
[1673864867942,17.0,23.525,23.51,24.66]
[1673864868374,31.91,23.529,23.51,24.66]
[1673864868563,20.0,23.53,23.511,37.0]
[1673864868780,20.0,23.531,23.511,37.0]
[1673864868996,20.0,23.537,23.511,37.0]
[1673864869216,31.9,23.536,23.511,37.0]
[1673864869427,20.0,23.535,23.511,37.0]
[1673864869630,48.9,23.534,23.511,20.0]
[1673864869848,40.0,23.533,23.511,20.0]
[1673864870057,17.0,23.532,23.511,20.0]
[1673864870266,20.0,23.531,23.511,20.0]
[1673864870478,17.0,23.53,23.511,20.0]
[1673864870690,20.0,23.529,23.511,20.0]
[1673864870905,17.0,23.528,23.511,20.0]
[1673864871082,31.9,23.534,23.511,20.0]
[1673864871292,20.0,23.539,23.52,24.5]
[1673864871513,31.89,23.538,23.52,24.5]
[1673864871723,20.0,23.537,23.52,24.5]
[1673864871943,20.0,23.535,23.52,24.5]
[1673864872157,31.9,23.534,23.52,24.5]
[1673864872372,17.0,23.533,23.52,24.65]
[1673864873206,17.0,23.534,23.52,24.65]
[1673864873617,17.0,23.534,23.513,20.0]
[1673864873831,17.0,23.534,23.514,20.0]
[1673864874257,48.9,23.534,23.514,20.0]
[1673864874995,20.0,23.533,23.514,20.0]
[1673864875207,20.0,23.531,23.513,20.0]
[1673864875409,17.0,23.53,23.513,20.0]
[1673864876573,17.0,23.53,23.512,110.8076]
[1673864876886,31.9,23.534,23.512,110.8076]
[1673864876887,20.0,23.529,23.512,110.8076]
[1673864877082,20.0,23.549,23.52,24.65]
[1673864877293,20.0,23.539,23.52,24.65]
[1673864877628,20.0,23.538,23.52,24.65]
[1673864877835,51.89,23.538,23.52,24.65]
[1673864878477,31.89,23.538,23.52,24.65]
[1673864878661,20.0,23.537,23.52,24.65]
[1673864879413,17.0,23.536,23.52,24.65]
[1673864881732,71.9,23.535,23.512,110.8076]
[1673864881943,17.0,23.534,23.512,110.8076]
[1673864882150,71.9,23.533,23.512,110.8076]
[1673864882460,20.0,23.531,23.512,110.8076]
[1673864882658,48.9,23.53,23.512,110.8076]
[1673864882873,68.9,23.53,23.512,110.8076]
[1673864883303,20.0,23.529,23.512,110.8076]
[1673864883526,48.91,23.528,23.513,20.0]
[1673864883836,17.0,23.527,23.513,20.0]
[1673864884580,17.0,23.529,23.513,20.0]
[1673864884785,48.91,23.529,23.513,20.0]
[1673864884974,17.0,23.529,23.513,20.0]
[1673864885406,20.0,23.53,23.513,20.0]
[1673864885617,20.0,23.535,23.513,20.0]
[1673864885826,31.9,23.534,23.513,20.0]
[1673864886037,20.0,23.533,23.513,20.0]
[1673864886242,31.9,23.532,23.513,20.0]
[1673864886457,20.0,23.531,23.513,20.0]
[1673864886869,17.0,23.53,23.513,20.0]
[1673864887080,20.0,23.529,23.513,20.0]
[1673864888248,31.9,23.534,23.514,20.0]
[1673864888454,145.9866,23.541,23.52,24.57]
[1673864888656,31.89,23.542,23.53,24.55]
[1673864888874,20.0,23.553,23.53,24.55]
[1673864888875,31.88,23.547,23.53,24.55]
[1673864889509,31.88,23.548,23.53,24.55]
[1673864890232,17.0,23.547,23.53,24.55]
[1673864890561,31.88,23.546,23.53,24.55]
[1673864890771,17.0,23.545,23.53,24.55]
[1673864891385,31.89,23.544,23.53,24.55]
[1673864891597,17.0,23.543,23.53,24.55]
[1673864892231,20.0,23.542,23.53,24.55]
[1673864892441,68.89,23.541,23.53,24.55]
[1673864892661,20.0,23.54,23.53,24.55]
[1673864892888,17.0,23.539,23.53,24.55]
[1673864893813,20.0,23.54,23.53,24.55]
[1673864894025,20.0,23.547,23.53,24.55]
[1673864894224,68.88,23.546,23.53,24.55]
[1673864894433,48.88,23.546,23.53,24.55]
[1673864895075,17.0,23.546,23.53,24.55]
[1673864895284,31.88,23.545,23.53,24.55]
[1673864895498,17.0,23.544,23.53,24.55]
[1673864895809,31.88,23.546,23.53,24.55]
[1673864896014,20.0,23.547,23.53,24.55]
[1673864896221,31.88,23.546,23.53,24.55]
[1673864897498,20.0,23.544,23.53,24.55]
[1673864897704,51.87,23.554,23.531,31.9]
[1673864897914,20.0,23.551,23.54,24.55]
[1673864898129,20.0,23.55,23.532,138.11136354]
[1673864898343,20.0,23.549,23.54,24.57]
[1673864899503,20.0,23.547,23.54,24.65]
[1673864899714,17.0,23.546,23.54,24.65]
[1673864900759,20.0,23.546,23.532,116.6494]
[1673864900967,20.0,23.549,23.533,20.0]
[1673864901181,20.0,23.551,23.533,20.0]
[1673864901389,20.0,23.551,23.54,24.65]
[1673864901598,31.87,23.555,23.54,24.65]
[1673864901811,116.6154,23.556,23.541,21.46196354]
[1673864902250,116.6154,23.556,23.542,20.0]
[1673864902449,31.86,23.565,23.542,20.0]
[1673864902657,20.0,23.564,23.542,108.8651]
[1673864902873,20.0,23.562,23.542,108.8651]
[1673864903072,51.86,23.561,23.542,108.8651]
[1673864903488,51.86,23.561,23.542,8.8651]
[1673864903693,51.86,23.561,23.54,24.65]
[1673864904032,20.0,23.56,23.54,46.11196354]
[1673864904230,31.86,23.559,23.54,46.11196354]
[1673864904440,20.0,23.558,23.54,46.11196354]
[1673864904644,17.0,23.557,23.54,46.11196354]
[1673864904866,110.0225,23.567,23.55,24.55]
[1673864905188,20.0,23.566,23.55,24.55]
[1673864905369,31.86,23.565,23.55,24.55]
[1673864905579,20.0,23.563,23.55,24.55]
[1673864905794,20.0,23.562,23.55,24.55]
[1673864906036,20.0,23.561,23.542,20.0]
[1673864906236,51.86,23.562,23.55,24.65]
[1673864906450,17.0,23.561,23.55,24.65]
[1673864906872,20.0,23.56,23.55,24.65]
[1673864907287,20.0,23.559,23.55,24.65]
[1673864907486,17.0,23.559,23.54,56.46]
[1673864907698,17.0,23.559,23.54,24.57]
[1673864908245,17.0,23.559,23.541,41.46196354]
[1673864908649,17.0,23.559,23.542,21.46196354]
[1673864909187,20.0,23.56,23.542,21.46196354]
[1673864909395,20.0,23.56,23.543,17.0]
[1673864909603,20.0,23.561,23.543,17.0]
[1673864909817,20.0,23.561,23.544,21.46196354]
[1673864910132,20.0,23.561,23.55,24.57]
[1673864910347,20.0,23.559,23.55,24.57]
[1673864910766,17.0,23.56,23.55,24.57]
[1673864910974,20.0,23.559,23.55,24.57]
[1673864911499,20.0,23.558,23.544,21.46196354]
[1673864911691,20.0,23.558,23.55,24.57]
[1673864912027,20.0,23.559,23.55,24.57]
[1673864912760,20.0,23.56,23.55,24.57]
[1673864912956,20.0,23.559,23.55,24.57]
[1673864913806,17.0,23.558,23.52,24.65]
[1673864914127,59.66270453,23.557,23.52,24.65]
[1673864914340,57.0,23.556,23.52,24.65]
[1673864914534,24.65,23.55,23.51,24.65]
[1673864914745,88.88,23.549,23.51,24.65]
[1673864914948,178.99537698,23.549,23.51,24.65]
[1673864915163,24.5,23.54,23.51,24.65]
[1673864915385,48.89,23.539,23.51,24.65]
[1673864915609,24.6239,23.538,23.51,24.65]
[1673864915921,48.89,23.537,23.51,24.65]
[1673864916138,20.0,23.535,23.51,24.65]
[1673864916331,68.9,23.534,23.51,24.65]
[1673864916550,20.0,23.533,23.51,24.65]
[1673864916741,68.9,23.532,23.5,24.56]
[1673864916958,20.0,23.531,23.5,24.56]
[1673864917175,20.0,23.529,23.5,24.56]
[1673864917479,20.0,23.527,23.5,24.56]
[1673864917695,20.0,23.525,23.5,24.56]
[1673864917901,48.91,23.524,23.5,24.56]
[1673864918118,20.0,23.522,23.5,24.56]
[1673864918327,68.92,23.521,23.5,24.56]
[1673864918756,20.0,23.519,23.5,24.56]
[1673864918965,17.0,23.518,23.5,24.56]
[1673864921399,20.0,23.517,23.5,24.56]
[1673864921582,17.0,23.516,23.5,24.56]
[1673864922001,31.92,23.515,23.5,24.56]
[1673864922211,17.0,23.514,23.5,24.56]
[1673864922440,48.92,23.516,23.5,24.56]
[1673864922650,31.92,23.516,23.5,24.56]
[1673864922842,31.92,23.52,23.5,24.56]
[1673864923055,21.46196354,23.522,23.5,24.56]
[1673864923267,20.0,23.52,23.5,24.56]
[1673864923920,41.46196354,23.52,23.5,24.56]
[1673864924110,17.0,23.519,23.5,24.56]
[1673864925258,20.0,23.518,23.5,24.56]
[1673864925472,17.0,23.517,23.5,24.56]
[1673864926549,17.0,23.519,23.5,24.56]
[1673864929896,17.0,23.52,23.5,24.56]
[1673864930105,20.0,23.519,23.5,24.56]
[1673864930312,17.0,23.518,23.5,24.56]
[1673864933889,20.0,23.517,23.5,24.56]
[1673864934100,17.0,23.516,23.5,24.56]
[1673864934534,20.0,23.519,23.5,24.56]
[1673864934760,20.0,23.52,23.501,17.0]
[1673864935150,20.0,23.52,23.5,24.56]
[1673864935575,31.92,23.519,23.5,24.56]
[1673864935799,20.0,23.518,23.5,24.56]
[1673864935994,31.92,23.517,23.5,24.56]
[1673864936201,37.0,23.516,23.5,24.56]
[1673864936534,20.0,23.514,23.5,24.56]
[1673864936731,20.0,23.512,23.5,24.56]
[1673864936941,17.0,23.511,23.5,24.56]
[1673864937369,150.4618,23.517,23.5,24.56]
[1673864937577,31.91,23.523,23.5,24.56]
[1673864938429,31.92,23.519,23.5,24.56]
[1673864938628,20.0,23.518,23.5,24.56]
[1673864938841,20.0,23.516,23.5,24.56]
[1673864939043,17.0,23.515,23.5,24.56]
[1673864940011,51.92,23.521,23.5,24.56]
[1673864940225,17.0,23.52,23.5,24.69]
[1673864940434,20.0,23.518,23.5,24.69]
[1673864940750,17.0,23.517,23.5,24.69]
[1673864942014,20.0,23.517,23.5,24.69]
[1673864942221,17.0,23.516,23.5,24.69]
[1673864944734,51.92,23.515,23.493,114.6197]
[1673864944945,37.0,23.514,23.493,114.6197]
[1673864945151,51.93,23.513,23.49,24.58]
[1673864945383,17.0,23.512,23.49,24.58]
[1673864945570,51.93,23.511,23.49,24.58]
[1673864945783,20.0,23.509,23.49,24.58]
[1673864946099,48.93,23.508,23.49,24.58]
[1673864946429,20.0,23.507,23.49,24.58]
[1673864946636,48.94,23.506,23.49,24.58]
[1673864946824,20.0,23.505,23.49,24.58]
[1673864947037,48.94,23.504,23.49,24.58]
[1673864947246,31.94,23.504,23.49,24.58]
[1673864947472,17.0,23.503,23.49,24.58]
[1673864947878,17.0,23.504,23.49,24.58]
[1673864948089,31.94,23.503,23.49,24.58]
[1673864948314,17.0,23.502,23.49,24.58]
[1673864948507,20.0,23.501,23.48,24.47]
[1673864948718,20.0,23.501,23.481,20.0]
[1673864949371,17.0,23.5,23.481,20.0]
[1673864949663,20.0,23.499,23.481,20.0]
[1673864949890,17.0,23.498,23.481,20.0]
[1673864950080,115.1318,23.504,23.482,17.0]
[1673864950292,31.93,23.509,23.49,24.45]
[1673864950502,53.40196354,23.503,23.48,24.47]
[1673864950837,20.0,23.502,23.48,24.47]
[1673864951061,31.94,23.501,23.48,24.47]
[1673864951269,20.0,23.5,23.48,24.47]
[1673864951782,20.0,23.498,23.48,24.47]
[1673864951994,17.0,23.497,23.48,24.47]
[1673864952744,17.0,23.499,23.48,24.47]
[1673864952943,20.0,23.498,23.48,24.47]
[1673864953477,17.0,23.497,23.48,24.47]
[1673864955058,48.95,23.498,23.48,24.47]
[1673864955280,20.0,23.497,23.48,24.47]
[1673864955459,17.0,23.496,23.48,24.47]
[1673864955766,20.0,23.494,23.48,24.47]
[1673864955981,68.95,23.493,23.48,24.47]
[1673864957480,37.0,23.493,23.48,24.47]
[1673864958509,17.0,23.493,23.48,24.47]
[1673864959035,31.94,23.501,23.48,24.47]
[1673864959256,20.0,23.5,23.48,24.47]
[1673864959457,31.95,23.499,23.48,24.47]
[1673864959669,20.0,23.5,23.481,38.46196354]
[1673864959990,20.0,23.5,23.48,24.47]
[1673864960407,51.95,23.5,23.48,24.47]
[1673864960613,20.0,23.498,23.48,24.47]
[1673864960945,31.95,23.5,23.48,24.47]
[1673864961252,20.0,23.499,23.481,17.0]
[1673864961467,20.0,23.499,23.482,20.0]
[1673864961991,20.0,23.502,23.482,20.0]
[1673864962434,17.0,23.501,23.482,20.0]
[1673864962648,20.0,23.5,23.482,20.0]
[1673864962856,17.0,23.499,23.482,20.0]
[1673864963593,17.0,23.499,23.481,20.0]
[1673864964327,17.0,23.499,23.48,24.47]
[1673864965166,20.0,23.498,23.48,24.47]
[1673864965477,17.0,23.497,23.48,24.47]
[1673864965881,17.0,23.498,23.48,24.47]
[1673864966313,17.0,23.499,23.48,24.47]
[1673864966513,17.0,23.499,23.481,20.0]
[1673864967898,17.0,23.499,23.48,24.47]
[1673864968296,31.95,23.498,23.48,24.47]
[1673864968513,17.0,23.497,23.481,20.0]
[1673864969051,20.0,23.5,23.482,21.46196354]
[1673864969251,20.0,23.501,23.49,24.69]
[1673864969466,147.0862,23.513,23.49,24.69]
[1673864969682,20.0,23.512,23.491,20.0]
[1673864969891,31.93,23.511,23.491,20.0]
[1673864970105,20.0,23.51,23.491,20.0]
[1673864970817,17.0,23.509,23.491,20.0]
[1673864971028,17.0,23.51,23.491,20.0]
[1673864971268,20.0,23.509,23.491,20.0]
[1673864971450,17.0,23.508,23.491,20.0]
[1673864973687,17.0,23.508,23.49,24.69]
[1673864974075,48.93,23.508,23.49,24.69]
[1673864974500,17.0,23.508,23.491,20.0]
[1673864974813,17.0,23.508,23.49,24.69]
[1673864975024,31.94,23.507,23.49,24.69]
[1673864975247,17.0,23.506,23.49,24.69]
[1673864975444,31.94,23.505,23.49,24.69]
[1673864975655,17.0,23.504,23.49,24.69]
[1673864977038,17.0,23.504,23.48,24.47]
[1673864977253,31.94,23.503,23.482,20.0]
[1673864977445,17.0,23.502,23.483,20.0]
[1673864977656,31.94,23.501,23.483,20.0]
[1673864977873,17.0,23.5,23.483,20.0]
[1673864978085,31.95,23.499,23.483,20.0]
[1673864978301,17.0,23.498,23.48,24.47]
[1673864978500,31.95,23.497,23.48,24.47]
[1673864978821,17.0,23.496,23.48,24.47]
[1673864979034,31.95,23.495,23.48,24.47]
[1673864979224,17.0,23.494,23.48,24.47]
[1673864981007,17.0,23.496,23.48,24.47]
[1673864981220,31.95,23.495,23.48,24.47]
[1673864981436,17.0,23.494,23.48,24.47]
[1673864981644,17.0,23.494,23.47,24.45]
[1673864981869,20.0,23.492,23.47,24.45]
[1673864982074,68.96,23.491,23.47,24.45]
[1673864982279,20.0,23.49,23.47,24.45]
[1673864982499,68.96,23.489,23.47,24.45]
[1673864982930,20.0,23.488,23.47,24.45]
[1673864983127,48.96,23.487,23.47,24.45]
[1673864984064,17.0,23.487,23.47,24.45]
[1673864987338,31.96,23.488,23.47,24.45]
[1673864988076,51.96,23.488,23.47,24.45]
[1673864988272,51.96,23.488,23.463,20.0]
[1673864988481,51.96,23.488,23.46,24.61]
[1673864988482,20.0,23.487,23.46,24.61]
[1673864988713,20.0,23.485,23.46,24.61]
[1673864988929,48.97,23.484,23.46,24.61]
[1673864989139,20.0,23.483,23.46,24.61]
[1673864989343,20.0,23.481,23.46,24.61]
[1673864989560,68.97,23.48,23.46,24.61]
[1673864989750,20.0,23.479,23.46,24.61]
[1673864990081,48.97,23.478,23.46,24.61]